fUSD/lending_fUSD_20250201
["ID","MTS","AMOUNT","RATE_DAILY","PERIOD"]
[351173545,1738390250752,-1035.68,0.00017734,2]
[351173546,1738390250761,-730.89,0.00017734,2]
[351173547,1738390250770,-500.0,0.00017734,2]
[351173548,1738390250779,-693.75,0.00017734,2]
[351173549,1738390250788,-500.0,0.00017734,2]
[351173550,1738390250797,-500.0,0.00017734,2]
[351173551,1738390250806,-907.65,0.00017734,2]
[351173552,1738390250816,-1101.21,0.00017734,2]
[351173553,1738390250824,-612.19612224,0.00017734,2]
[351173554,1738390250834,-500.0,0.00017734,2]
[351173555,1738390250843,-500.0,0.00017734,2]
[351173556,1738390250852,-501.37897398,0.00017734,2]
[351173557,1738390250861,-1491.11,0.00017734,2]
[351173558,1738390250870,-500.0,0.00017734,2]
[351173559,1738390250879,-500.0,0.00017734,2]
[351173560,1738390250889,-945.55,0.00017734,2]
[351173561,1738390250898,-500.0,0.00017734,2]
[351173562,1738390250908,-1169.69,0.00017734,2]
[351173563,1738390250917,-1498.0,0.00017734,2]
[351173564,1738390250926,-500.0,0.00017734,2]
[351173565,1738390250935,-211.75493693,0.00017734,2]
[351173566,1738390250944,-500.0,0.00017734,2]
[351173567,1738390250954,-210.34909685,0.00017734,2]
[351173568,1738390250963,-500.0,0.00017734,2]
[351173569,1738390250973,-2953.44,0.00017734,2]
[351173570,1738390250982,-500.0,0.00017734,2]
[351173571,1738390250991,-1081.63,0.00017734,2]
[351173572,1738390251000,-500.0,0.00017734,2]
[351173573,1738390251009,-500.0,0.00017734,2]
[351173574,1738390251018,-500.0,0.00017734,2]
[351173575,1738390251027,-3859.54,0.00017734,2]
[351173576,1738390251036,-500.0,0.00017734,2]
[351173577,1738390251045,-8348.45,0.00017734,2]
[351173578,1738390251054,-500.0,0.00017734,2]
[351173579,1738390251063,-500.0,0.00017734,2]
[351173580,1738390251073,-3888.8,0.00017734,2]
[351173581,1738390251082,-582.78017358,0.00017734,2]
[351173582,1738390251091,-500.0,0.00017734,2]
[351173583,1738390251099,-500.0,0.00017734,2]
[351173584,1738390251109,-500.0,0.00017734,2]
[351173585,1738390251119,-500.0,0.00017734,2]
[351173586,1738390251135,-500.0,0.00017734,2]
[351173587,1738390251146,-1899.82,0.00017734,2]
[351173588,1738390251155,-500.0,0.00017735,2]
[351173589,1738390251165,-160.99890797,0.00017735,2]
[351173590,1738390251176,-500.0,0.00017735,2]
[351173591,1738390251185,-500.0,0.00017735,2]
[351173592,1738390251194,-500.0,0.00017735,2]
[351173593,1738390251203,-500.0,0.00017735,2]
[351173594,1738390251213,-500.0,0.00017735,2]
[351173595,1738390251223,-167.8102676,0.00017735,2]
[351173596,1738390251232,-500.0,0.00017735,2]
[351173597,1738390251241,-275.99829876,0.00017735,2]
[351173598,1738390251250,-500.0,0.00017735,2]
[351173599,1738390251261,-500.0,0.00017735,2]
[351173600,1738390251272,-500.0,0.00017735,2]
[351173601,1738390251281,-504.09467639,0.00017735,7]
[351173602,1738390251291,-500.0,0.00017735,2]
[351173603,1738390251300,-500.0,0.00017735,2]
[351173604,1738390251309,-500.0,0.00017735,2]
[351173605,1738390251319,-508.81389497,0.00017735,2]
[351173606,1738390251328,-500.0,0.00017735,2]
[351173607,1738390251338,-374.85569607,0.00017735,2]
[351173608,1738390251347,-500.0,0.00017735,2]
[351173609,1738390251356,-430.61,0.00017735,2]
[351173610,1738390251366,-378.26735753,0.00017735,2]
[351173611,1738390251375,-500.0,0.00017735,2]
[351173612,1738390251385,-500.0,0.00017735,2]
[351173613,1738390251394,-446.49674018,0.00017735,2]
[351173614,1738390251403,-500.0,0.00017735,2]
[351173615,1738390251412,-534.41250104,0.00017735,2]
[351173616,1738390251422,-500.0,0.00017735,2]
[351173617,1738390251431,-500.0,0.00017735,2]
[351173618,1738390251441,-500.0,0.00017735,2]
[351173619,1738390251450,-500.0,0.00017735,2]
[351173620,1738390251459,-500.0,0.00017735,2]
[351173621,1738390251469,-500.0,0.00017735,2]
[351173622,1738390251479,-500.0,0.00017735,2]
[351173623,1738390251488,-500.0,0.00017735,2]
[351173624,1738390251497,-500.0,0.00017735,2]
[351173625,1738390251506,-316.67485909,0.00017735,2]
[351173626,1738390251516,-337.81146609,0.00017735,2]
[351173627,1738390251525,-500.0,0.00017735,2]
[351173628,1738390251535,-500.0,0.00017735,2]
[351173629,1738390251544,-500.0,0.00017735,2]
[351173630,1738390251553,-500.0,0.00017735,2]
[351173631,1738390251562,-595.5,0.00017735,2]
[351173632,1738390251571,-364.96295365,0.00017735,2]
[351173633,1738390251580,-512.09851434,0.00017735,2]
[351173634,1738390251589,-500.0,0.00017735,2]
[351173635,1738390251598,-651.3,0.00017735,2]
[351173636,1738390251607,-500.0,0.00017735,2]
[351173637,1738390251617,-500.0,0.00017735,2]
[351173638,1738390251626,-500.0,0.00017735,2]
[351173639,1738390251636,-162.43906101,0.00017735,2]
[351173640,1738390251645,-500.0,0.00017735,2]
[351173641,1738390251654,-500.0,0.00017735,2]
[351173642,1738390251663,-500.0,0.00017735,2]
[351173643,1738390251671,-500.0,0.00017735,2]
[351173644,1738390251680,-500.0,0.00017735,2]
[351173645,1738390251689,-500.0,0.00017735,2]
[351173646,1738390251698,-498.35917945,0.00017735,2]
[351173647,1738390251707,-500.0,0.00017735,2]
[351173648,1738390251716,-500.0,0.00017735,2]
[351173649,1738390251725,-500.0,0.00017735,2]
[351173650,1738390251734,-500.0,0.00017735,2]
[351173651,1738390251743,-595.23,0.00017735,2]
[351173652,1738390251752,-500.0,0.00017735,2]
[351173653,1738390251761,-604.14596402,0.00017735,2]
[351173654,1738390251770,-500.0,0.00017735,2]
[351173655,1738390251779,-500.0,0.00017735,2]
[351173656,1738390251788,-500.0,0.00017735,2]
[351173657,1738390251797,-219.90223585,0.00017735,2]
[351173658,1738390251806,-500.0,0.00017735,2]
[351173659,1738390251816,-500.0,0.00017735,2]
[351173660,1738390251825,-500.0,0.00017735,2]
[351173661,1738390251834,-500.0,0.00017735,2]
[351173662,1738390251843,-500.0,0.00017735,2]
[351173663,1738390251853,-500.0,0.00017735,2]
[351173664,1738390251863,-500.0,0.00017735,2]
[351173665,1738390251873,-500.0,0.00017735,2]
[351173666,1738390251883,-499.93240174,0.00017735,2]
[351173667,1738390251892,-500.0,0.00017735,2]
[351173668,1738390251902,-500.0,0.00017735,2]
[351173669,1738390251911,-500.0,0.00017735,2]
[351173670,1738390251920,-500.0,0.00017735,2]
[351173671,1738390251929,-586.36332999,0.00017735,2]
[351173672,1738390251939,-500.0,0.00017735,2]
[351173673,1738390251948,-500.0,0.00017735,2]
[351173674,1738390251957,-500.0,0.00017735,2]
[351173675,1738390251967,-500.0,0.00017735,2]
[351173676,1738390251975,-500.0,0.00017735,2]
[351173677,1738390251985,-507.4039842,0.00017735,2]
[351173678,1738390251994,-500.0,0.00017735,2]
[351173679,1738390252003,-655.92,0.00017735,2]
[351173680,1738390252012,-500.0,0.00017735,2]
[351173681,1738390252021,-500.0,0.00017735,2]
[351173682,1738390252030,-500.0,0.00017735,2]
[351173683,1738390252039,-504.88042237,0.00017735,2]
[351173684,1738390252048,-500.0,0.00017735,2]
[351173685,1738390252058,-500.0,0.00017735,2]
[351173686,1738390252066,-500.0,0.00017735,2]
[351173687,1738390252075,-282.68872462,0.00017735,2]
[351173688,1738390252085,-500.0,0.00017735,2]
[351173689,1738390252094,-500.0,0.00017735,2]
[351173690,1738390252103,-500.0,0.00017735,2]
[351173691,1738390252112,-504.62295345,0.00017735,2]
[351173692,1738390252121,-500.0,0.00017735,2]
[351173693,1738390252131,-500.0,0.00017735,2]
[351173694,1738390252141,-500.0,0.00017735,2]
[351173695,1738390252150,-500.0,0.00017735,2]
[351173696,1738390252160,-500.0,0.00017735,2]
[351173697,1738390252170,-500.0,0.00017735,2]
[351173698,1738390252184,-500.0,0.00017735,2]
[351173699,1738390252194,-500.0,0.00017735,2]
[351173700,1738390252203,-500.0,0.00017735,2]
[351173701,1738390252214,-500.0,0.00017735,2]
[351173702,1738390252224,-500.0,0.00017735,2]
[351173703,1738390252234,-500.0,0.00017735,2]
[351173704,1738390252243,-500.0,0.00017735,2]
[351173705,1738390252255,-473.54257198,0.00017735,2]
[351173706,1738390252265,-882.19,0.00017735,2]
[351173707,1738390252274,-500.0,0.00017735,2]
[351173708,1738390252283,-500.0,0.00017735,2]
[351173709,1738390252293,-708.06,0.00017735,2]
[351173710,1738390252302,-500.0,0.00017735,2]
[351173711,1738390252311,-503.48569646,0.00017735,2]
[351173712,1738390252321,-500.0,0.00017735,2]
[351173713,1738390252330,-891.75,0.00017735,2]
[351173714,1738390252340,-500.0,0.00017735,2]
[351173715,1738390252349,-500.0,0.00017735,2]
[351173716,1738390252359,-519.79878496,0.00017735,2]
[351173717,1738390252368,-316.36629993,0.00017735,2]
[351173718,1738390252377,-500.0,0.00017735,2]
[351173719,1738390252386,-500.0,0.00017735,2]
[351173720,1738390252395,-550.14,0.00017735,2]
[351173721,1738390252407,-500.0,0.00017735,2]
[351173722,1738390252416,-500.0,0.00017735,2]
[351173723,1738390252426,-500.0,0.00017735,2]
[351173724,1738390252435,-832.61,0.00017735,2]
[351173725,1738390252445,-500.0,0.00017735,2]
[351173726,1738390252454,-500.0,0.00017735,2]
[351173727,1738390252463,-1012.32,0.00017735,2]
[351173728,1738390252472,-500.0,0.00017735,2]
[351173729,1738390252481,-707.85,0.00017735,2]
[351173730,1738390252491,-500.0,0.00017735,2]
[351173731,1738390252500,-870.0,0.00017735,2]
[351173732,1738390252508,-500.0,0.00017735,2]
[351173733,1738390252517,-500.0,0.00017735,2]
[351173734,1738390252527,-766.25,0.00017735,2]
[351173735,1738390252536,-500.0,0.00017735,2]
[351173736,1738390252545,-1395.26,0.00017735,2]
[351173737,1738390252555,-523.28,0.00017735,2]
[351173738,1738390252564,-1342.88,0.00017735,2]
[351173739,1738390252573,-500.0,0.00017735,2]
[351173740,1738390252583,-1542.1,0.00017735,2]
[351173741,1738390252592,-551.38,0.00017735,2]
[351173742,1738390252601,-500.0,0.00017735,2]
[351173743,1738390252611,-500.0,0.00017735,2]
[351173744,1738390252620,-1172.08,0.00017735,2]
[351173745,1738390252630,-500.0,0.00017735,2]
[351173746,1738390252639,-500.0,0.00017735,2]
[351173747,1738390252649,-500.0,0.00017735,2]
[351173748,1738390252659,-500.0,0.00017735,2]
[351173749,1738390252668,-1035.25,0.00017735,2]
[351173750,1738390252678,-608.36,0.00017735,2]
[351173751,1738390252687,-372.43,0.00017735,2]
[351173752,1738390252696,-84239.41329881,0.00017735,2]
[351173753,1738390252705,-150.0,0.00017737,2]
[351173754,1738390252715,-150.0,0.00017749,2]
[351173755,1738390252723,-150.0,0.00017755,2]
[351173756,1738390252733,-150.0,0.00017761,2]
[351173757,1738390252743,-150.0,0.00017765,2]
[351173758,1738390252753,-150.0,0.00017778,2]
[351173759,1738390252762,-758.54,0.00017788,2]
[351173760,1738390252771,-1000.0,0.00017788,2]
[351173761,1738390252780,-173.79,0.00017788,2]
[351173762,1738390252789,-150.0,0.00017789,2]
[351173763,1738390252799,-150.0,0.00017807,2]
[351173764,1738390252809,-202.0,0.00017849,2]
[351173765,1738390252817,-1000.0,0.0001786,2]
[351173766,1738390252827,-150.0,0.00017867,2]
[351173767,1738390252836,-1477.04,0.0001787,2]
[351173768,1738390252846,-1590.57,0.0001787,2]
[351173769,1738390252855,-1186.67,0.0001787,2]
[351173770,1738390252865,-500.0,0.0001787,2]
[351173771,1738390252874,-1378.94,0.0001787,2]
[351173772,1738390252885,-3431.91,0.0001787,2]
[351173773,1738390252894,-500.0,0.0001787,2]
[351173774,1738390252904,-1891.01,0.0001787,2]
[351173775,1738390252913,-2943.52,0.0001787,2]
[351173776,1738390252922,-500.0,0.0001787,2]
[351173777,1738390253051,-2438.65,0.0001787,2]
[351173778,1738390253077,-1639.8,0.0001787,2]
[351173779,1738390253088,-500.0,0.0001787,2]
[351173780,1738390253097,-2930.17,0.0001787,2]
[351173781,1738390253106,-1163.58,0.0001787,2]
[351173782,1738390253116,-2096.18,0.0001787,2]
[351173783,1738390253124,-2998.94,0.0001787,2]
[351173784,1738390253134,-1863.38,0.0001787,2]
[351173785,1738390253144,-4881.23,0.0001787,2]
[351173786,1738390253153,-524.89,0.0001787,2]
[351173787,1738390253164,-1306.68,0.0001787,2]
[351173788,1738390253177,-587.32,0.0001787,2]
[351173789,1738390253187,-500.0,0.0001787,2]
[351173790,1738390253197,-511.61,0.0001787,2]
[351173791,1738390253206,-500.0,0.0001787,2]
[351173792,1738390253216,-696.13,0.0001787,2]
[351173793,1738390253226,-392.38891692,0.0001787,2]
[351173794,1738390253235,-500.0,0.0001787,2]
[351173795,1738390253246,-1470.83,0.0001787,2]
[351173796,1738390253256,-509.94511514,0.0001787,2]
[351173797,1738390253265,-500.0,0.0001787,2]
[351173798,1738390253274,-689.77,0.0001787,2]
[351173799,1738390253284,-175.74756479,0.0001787,2]
[351173800,1738390253293,-1005.41,0.0001787,2]
[351173801,1738390253303,-2887.2,0.0001787,2]
[351173802,1738390253312,-2239.1,0.0001787,2]
[351173803,1738390253322,-15869.27649927,0.0001787,2]
[351173825,1738391432150,-183.24,0.00013699,2]
[351173826,1738391432160,-150.0,0.00013823,2]
[351173827,1738391432170,-150.0,0.00013823,2]
[351173828,1738391432179,-540.76,0.00014197,2]
[351173829,1738391432190,-202.51,0.00014197,2]
[351173830,1738391432199,-1283.53097828,0.00014968,2]
[351173831,1738391432208,-150.0,0.00014968,2]
[351173832,1738391432218,-150.0,0.00015068,2]
[351173833,1738391432228,-150.0,0.00015068,2]
[351173834,1738391432237,-150.0,0.00015068,2]
[351173835,1738391432247,-150.0,0.00015068,2]
[351173836,1738391432257,-150.0,0.00015108,2]
[351173837,1738391432267,-150.0,0.00015116,2]
[351173838,1738391432276,-150.0,0.00015148,2]
[351173839,1738391432286,-150.0,0.00015183,2]
[351173840,1738391432295,-150.0,0.00015205,2]
[351173841,1738391432304,-150.0,0.00015518,2]
[351173842,1738391432314,-1000.0,0.00015542,2]
[351173843,1738391432323,-244.68,0.00015546,2]
[351173844,1738391432333,-200.0,0.00015563,2]
[351173845,1738391432343,-150.0,0.00015621,2]
[351173846,1738391432352,-150.0,0.00015763,2]
[351173847,1738391432362,-300.0,0.00015782,2]
[351173848,1738391432371,-630.84,0.00015865,2]
[351173849,1738391432380,-150.0,0.00016016,2]
[351173850,1738391432390,-150.0,0.00016091,2]
[351173851,1738391432400,-150.0,0.00016107,2]
[351173852,1738391432409,-150.0,0.00016143,2]
[351173853,1738391432419,-290.56,0.00016175,2]
[351173854,1738391432429,-150.0,0.00016215,2]
[351173855,1738391432438,-150.0,0.00016362,2]
[351173856,1738391432448,-250.0,0.00016366,2]
[351173857,1738391432458,-368.63,0.00016369,2]
[351173858,1738391432467,-368.15,0.00016371,2]
[351173859,1738391432477,-376.97,0.00016375,2]
[351173860,1738391432487,-373.49,0.00016381,2]
[351173861,1738391432497,-379.24,0.00016391,2]
[351173862,1738391432506,-372.54,0.00016408,2]
[351173863,1738391432516,-150.0,0.00016412,2]
[351173864,1738391432525,-743.27,0.00016461,2]
[351173865,1738391432534,-559.06301933,0.00016481,2]
[351173867,1738391432543,-150.0,0.00016483,2]
[351173869,1738391432555,-373.73,0.00016594,2]
[351173871,1738391432564,-371.02,0.00016622,2]
[351173872,1738391432573,-379.61,0.00016667,2]
[351173873,1738391432583,-151.16871103,0.0001668,2]
[351173874,1738391432592,-380.02,0.00016741,2]
[351173875,1738391432602,-2462.72,0.0001676,2]
[351173876,1738391432611,-374.15,0.0001676,2]
[351173877,1738391432621,-377.92,0.0001676,2]
[351173878,1738391432630,-379.97,0.0001676,2]
[351173879,1738391432641,-379.44,0.0001676,2]
[351173881,1738391432651,-371.93,0.0001676,2]
[351173882,1738391432660,-378.07,0.0001676,2]
[351173883,1738391432670,-373.49,0.0001676,2]
[351173884,1738391432679,-150.0,0.00016776,2]
[351173885,1738391432689,-150.0,0.00016882,2]
[351173886,1738391432699,-174.54,0.00016888,2]
[351173887,1738391432709,-800.0,0.00016922,2]
[351173888,1738391432719,-150.0,0.00017007,2]
[351173889,1738391432729,-150.0,0.00017013,2]
[351173890,1738391432739,-150.0,0.00017017,2]
[351173891,1738391432749,-367.59,0.00017025,2]
[351173892,1738391432759,-150.0,0.00017026,2]
[351173893,1738391432769,-372.73,0.00017038,2]
[351173894,1738391432778,-374.25,0.00017055,2]
[351173895,1738391432788,-381.21,0.00017055,2]
[351173896,1738391432797,-150.0,0.00017062,2]
[351173897,1738391432807,-150.0,0.00017082,2]
[351173898,1738391432817,-250.0,0.00017083,2]
[351173899,1738391432826,-150.0,0.00017135,2]
[351173900,1738391432836,-150.0,0.00017138,2]
[351173901,1738391432846,-150.0,0.00017183,2]
[351173902,1738391432855,-150.0,0.00017202,2]
[351173903,1738391432864,-150.0,0.00017205,2]
[351173904,1738391432874,-1000.0,0.0001723,2]
[351173905,1738391432884,-420.0,0.00017259,2]
[351173906,1738391432894,-150.0,0.00017272,2]
[351173907,1738391432904,-150.0,0.00017279,2]
[351173908,1738391432914,-150.0,0.00017295,2]
[351173909,1738391432923,-150.0,0.00017348,2]
[351173910,1738391432933,-150.0,0.0001736,2]
[351173911,1738391432942,-150.0,0.00017365,2]
[351173912,1738391432951,-150.0,0.00017412,2]
[351173913,1738391432960,-150.0,0.0001742,2]
[351173914,1738391432972,-150.0,0.00017427,2]
[351173915,1738391432982,-150.0,0.0001745,2]
[351173916,1738391432992,-150.0,0.00017453,2]
[351173917,1738391433002,-150.0,0.00017459,2]
[351173918,1738391433012,-1000.0,0.00017485,2]
[351173919,1738391433022,-4837.47563709,0.00017487,2]
[351173920,1738391433031,-1000.0,0.00017502,2]
[351173921,1738391433041,-4837.47563709,0.00017513,2]
[351173922,1738391433051,-4837.47563709,0.00017527,2]
[351173923,1738391433061,-4837.47563709,0.00017539,2]
[351173924,1738391433071,-150.0,0.00017594,2]
[351173925,1738391433081,-150.0,0.00017617,2]
[351173926,1738391433091,-4955.75463123,0.00017634,2]
[351173927,1738391433143,-150.0,0.00017079,2]
[351173928,1738391433153,-44.24536877,0.00017634,2]
[351173929,1738391433163,-1282.19644598,0.0001764,2]
[351173930,1738391433180,-1025.55818525,0.0001764,2]
[351173931,1738391433203,-4100.0,0.0001764,2]
[351173936,1738391438106,-150.0,0.00016839,2]
[351173937,1738391438116,-150.0,0.00016964,2]
[351173939,1738391438125,-150.0,0.00017103,2]
[351173940,1738391438135,-150.0,0.0001712,2]
[351173942,1738391438144,-150.0,0.00017148,2]
[351173943,1738391438153,-150.0,0.00017216,2]
[351173944,1738391438163,-150.0,0.00017238,2]
[351173945,1738391438171,-150.0,0.00017242,2]
[351173946,1738391438181,-150.0,0.00017329,2]
[351173947,1738391438190,-150.0,0.00017336,2]
[351173948,1738391438200,-150.0,0.00017342,2]
[351173949,1738391438209,-150.0,0.00017365,2]
[351173950,1738391438224,-150.0,0.00017367,2]
[351173951,1738391438233,-150.0,0.00017379,2]
[351173952,1738391438243,-150.0,0.00017386,2]
[351173953,1738391438252,-150.0,0.00017407,2]
[351173954,1738391438262,-150.0,0.00017464,2]
[351173955,1738391438271,-150.0,0.00017525,2]
[351173956,1738391438281,-150.0,0.00017549,2]
[351173957,1738391438291,-3776.31085397,0.0001764,2]
[351173958,1738391438587,-1530.23022219,0.0001764,2]
[351173960,1738391438672,-150.0,0.00017167,2]
[351173961,1738391438681,-3374.5437103,0.0001764,2]
[351173962,1738391438719,-150.0,0.00016784,2]
[351173963,1738391438729,-15968.19854842,0.0001764,2]
[351173964,1738391438740,-2157.72288524,0.0001764,2]
[351173966,1738391438770,-1936.3458202,0.0001764,2]
[351173967,1738391438780,-150.0,0.00017642,2]
[351173968,1738391438789,-150.0,0.00017655,2]
[351173969,1738391438799,-150.0,0.00017676,2]
[351173970,1738391438808,-150.0,0.00017688,2]
[351173971,1738391438817,-150.0,0.00017701,2]
[351173972,1738391438827,-150.0,0.00017706,2]
[351173973,1738391438836,-153.0,0.00017715,2]
[351173974,1738391438846,-153.0,0.00017715,2]
[351173975,1738391438855,-153.0,0.00017715,2]
[351173976,1738391438865,-153.0,0.00017715,2]
[351173977,1738391438875,-153.0,0.00017715,2]
[351173978,1738391438884,-150.0,0.00017716,2]
[351173979,1738391438894,-304.0,0.00017723,2]
[351173980,1738391438903,-300.0,0.00017726,2]
[351173981,1738391438913,-882.77,0.00017732,2]
[351173982,1738391438922,-500.0,0.00017732,2]
[351173983,1738391438931,-5203.23,0.00017732,2]
[351173984,1738391438941,-1977.32,0.00017732,2]
[351173985,1738391438951,-2157.63,0.00017732,2]
[351173986,1738391438961,-500.0,0.00017732,2]
[351173987,1738391438972,-355.463185,0.00017732,2]
[351173988,1738391438982,-2215.63,0.00017732,2]
[351173989,1738391438992,-786.13,0.00017732,2]
[351173990,1738391439001,-500.0,0.00017732,2]
[351173991,1738391439011,-1279.88,0.00017732,2]
[351173992,1738391439021,-743.8,0.00017732,2]
[351173993,1738391439031,-500.0,0.00017732,2]
[351173994,1738391439040,-1586.14,0.00017732,2]
[351173995,1738391439049,-1473.65,0.00017732,2]
[351173996,1738391439059,-415.949143,0.00017732,2]
[351173997,1738391439069,-676.97,0.00017732,2]
[351173998,1738391439078,-1213.95,0.00017732,2]
[351173999,1738391439087,-2771.62,0.00017732,2]
[351174000,1738391439097,-2210.23,0.00017732,2]
[351174001,1738391439107,-614.42,0.00017732,2]
[351174002,1738391439116,-1458.02,0.00017732,2]
[351174003,1738391439126,-1087.78,0.00017732,2]
[351174004,1738391439136,-1881.23,0.00017732,2]
[351174005,1738391439146,-500.0,0.00017732,2]
[351174006,1738391439155,-1106.02,0.00017732,2]
[351174007,1738391439165,-3145.91,0.00017732,2]
[351174008,1738391439174,-1288.12,0.00017732,2]
[351174009,1738391439185,-2347.15,0.00017732,2]
[351174010,1738391439196,-500.0,0.00017732,2]
[351174011,1738391439206,-2931.91,0.00017732,2]
[351174012,1738391439215,-1733.43,0.00017732,2]
[351174013,1738391439224,-500.0,0.00017732,2]
[351174014,1738391439233,-500.0,0.00017732,2]
[351174015,1738391439245,-3827.77,0.00017732,2]
[351174016,1738391439254,-500.0,0.00017732,2]
[351174017,1738391439263,-2235.43,0.00017732,2]
[351174018,1738391439273,-812.03,0.00017732,2]
[351174019,1738391439283,-1503.15,0.00017732,2]
[351174020,1738391439292,-500.0,0.00017732,2]
[351174021,1738391439302,-1077.08,0.00017732,2]
[351174022,1738391439311,-2685.99,0.00017732,2]
[351174023,1738391439320,-1786.26,0.00017732,2]
[351174024,1738391439330,-1066.61,0.00017732,2]
[351174025,1738391439339,-1921.5,0.00017732,2]
[351174026,1738391439350,-1086.61,0.00017732,2]
[351174027,1738391439359,-2749.03,0.00017732,2]
[351174028,1738391439370,-3880.19,0.00017732,2]
[351174029,1738391439379,-1708.1,0.00017732,2]
[351174030,1738391439388,-4474.46,0.00017732,2]
[351174031,1738391439398,-500.0,0.00017732,2]
[351174032,1738391439407,-906.15,0.00017732,2]
[351174033,1738391439416,-1197.79,0.00017732,2]
[351174034,1738391439425,-500.0,0.00017732,2]
[351174035,1738391439434,-500.0,0.00017732,2]
[351174036,1738391439444,-638.12,0.00017732,2]
[351174037,1738391439454,-500.0,0.00017732,2]
[351174038,1738391439463,-1055.33,0.00017732,2]
[351174039,1738391439472,-500.0,0.00017732,2]
[351174040,1738391439482,-500.0,0.00017732,2]
[351174041,1738391439493,-500.0,0.00017732,2]
[351174042,1738391439503,-632.29,0.00017732,2]
[351174043,1738391439512,-2646.6,0.00017732,2]
[351174044,1738391439522,-500.0,0.00017732,2]
[351174045,1738391439532,-1120.95,0.00017732,2]
[351174046,1738391439541,-500.0,0.00017732,2]
[351174047,1738391439551,-2052.51,0.00017732,2]
[351174048,1738391439565,-500.0,0.00017732,2]
[351174049,1738391439574,-3742.95,0.00017732,2]
[351174050,1738391439584,-258.43484114,0.00017732,2]
[351174051,1738391439743,-500.0,0.00017733,2]
[351174052,1738391439755,-500.0,0.00017733,2]
[351174053,1738391439764,-500.0,0.00017733,2]
[351174054,1738391439774,-500.0,0.00017733,2]
[351174055,1738391439784,-538.38,0.00017733,2]
[351174056,1738391439793,-500.0,0.00017733,2]
[351174057,1738391439802,-500.0,0.00017733,2]
[351174058,1738391439812,-500.0,0.00017733,2]
[351174059,1738391439821,-500.0,0.00017733,2]
[351174060,1738391439831,-500.0,0.00017733,2]
[351174061,1738391439840,-500.0,0.00017733,2]
[351174062,1738391439849,-500.0,0.00017733,2]
[351174063,1738391439859,-500.0,0.00017733,2]
[351174064,1738391439868,-570.43,0.00017733,2]
[351174065,1738391439877,-1348.26,0.00017733,2]
[351174066,1738391439887,-500.0,0.00017733,2]
[351174067,1738391439896,-566.9,0.00017733,2]
[351174068,1738391439905,-921.63,0.00017733,2]
[351174069,1738391439915,-500.0,0.00017733,2]
[351174070,1738391439924,-500.0,0.00017733,2]
[351174071,1738391439934,-68.10003639,0.00017733,2]
[351174074,1738391440300,-150.0,0.00016945,2]
[351174075,1738391440310,-150.0,0.00016976,2]
[351174076,1738391440320,-150.0,0.00016988,2]
[351174077,1738391440329,-150.0,0.00017028,2]
[351174078,1738391440338,-24.79062538,0.00017045,2]
[351174079,1738391440350,-125.20937462,0.00017045,2]